[Event "Titled Tuesday Blitz August 15 Early 2023"]
[White "Eynullayev, Altay"]
[Black "Kushko, Dmitriy"]
[WhiteFideId "13413562"]
[BlackFideId "14162261"]
[WhiteElo "2562"]
[BlackElo "2693"]
[Result "0-1"]
[Round "9"]
[TimeControl "180+1"]
[Date "2023.08.15"]
[WhiteClock "0:00:00"]
[BlackClock "0:00:05"]
[Board "49"]

1. e4 {[%clk 0:03:00]}  g6 {[%clk 0:03:00]} 2. d4 {[%clk 0:03:00]}  Bg7 {[%clk 0:03:00]} 3. Nc3 {[%clk 0:03:01]}  d6 {[%clk 0:03:00]} 4. Bg5 {[%clk 0:03:00]}  a6 {[%clk 0:03:00]} 5. Nf3 {[%clk 0:02:59]}  b5 {[%clk 0:02:59]} 6. Bd3 {[%clk 0:03:00]}  Nd7 {[%clk 0:02:58]} 7. O-O {[%clk 0:02:59]}  c5 {[%clk 0:02:58]} 8. dxc5 {[%clk 0:02:50]}  Nxc5 {[%clk 0:02:58]} 9. Re1 {[%clk 0:02:44]}  Bb7 {[%clk 0:02:58]} 10. a3 {[%clk 0:02:44]}  Nf6 {[%clk 0:02:52]} 11. Qd2 {[%clk 0:02:42]}  O-O {[%clk 0:02:45]} 12. Bh6 {[%clk 0:02:39]}  Rc8 {[%clk 0:02:35]} 13. Rad1 {[%clk 0:02:35]}  e5 {[%clk 0:02:29]} 14. Bg5 {[%clk 0:02:11]}  Qb6 {[%clk 0:02:18]} 15. Bxf6 {[%clk 0:02:00]}  Bxf6 {[%clk 0:02:18]} 16. Bf1 {[%clk 0:01:59]}  Rfd8 {[%clk 0:02:14]} 17. Nd5 {[%clk 0:01:50]}  Bxd5 {[%clk 0:02:14]} 18. Qxd5 {[%clk 0:01:50]}  Ne6 {[%clk 0:02:11]} 19. c3 {[%clk 0:01:50]}  Rc5 {[%clk 0:01:45]} 20. Qb3 {[%clk 0:01:49]}  Rc7 {[%clk 0:01:03]} 21. g3 {[%clk 0:01:44]}  Qc6 {[%clk 0:01:02]} 22. h4 {[%clk 0:01:28]}  Nc5 {[%clk 0:01:00]} 23. Qd5 {[%clk 0:01:28]}  Qxd5 {[%clk 0:00:59]} 24. Rxd5 {[%clk 0:01:28]}  Na4 {[%clk 0:00:57]} 25. Rd2 {[%clk 0:01:26]}  Kf8 {[%clk 0:00:44]} 26. Red1 {[%clk 0:01:15]}  Ke7 {[%clk 0:00:44]} 27. Be2 {[%clk 0:00:55]}  h5 {[%clk 0:00:44]} 28. Kg2 {[%clk 0:00:53]}  Bg7 {[%clk 0:00:43]} 29. Rb1 {[%clk 0:00:22]}  Bh6 {[%clk 0:00:40]} 30. Rdd1 {[%clk 0:00:23]}  Nc5 {[%clk 0:00:38]} 31. Bd3 {[%clk 0:00:20]}  d5 {[%clk 0:00:28]} 32. Nxe5 {[%clk 0:00:15]}  Bg7 {[%clk 0:00:25]} 33. f4 {[%clk 0:00:14]}  Bxe5 {[%clk 0:00:22]} 34. fxe5 {[%clk 0:00:14]}  dxe4 {[%clk 0:00:21]} 35. Bc2 {[%clk 0:00:14]}  Rcd7 {[%clk 0:00:21]} 36. Rxd7+ {[%clk 0:00:05]}  Rxd7 {[%clk 0:00:21]} 37. Rf1 {[%clk 0:00:05]}  Rd5 {[%clk 0:00:13]} 38. b4 {[%clk 0:00:05]}  Nd3 {[%clk 0:00:13]} 39. Bb3 {[%clk 0:00:03]}  Rxe5 {[%clk 0:00:09]} 40. Rxf7+ {[%clk 0:00:04]}  Ke8 {[%clk 0:00:06]} 41. Rf6 {[%clk 0:00:00]}  e3 {[%clk 0:00:05]} 0-1


[Site "https://www.chess.com"]

[Event "Titled Tuesday Blitz August 15 Early 2023"]
[White "Degenbaev, Aziz"]
[Black "Kleiman, Jake"]
[WhiteFideId "13802640"]
[BlackFideId "2020041"]
[WhiteElo "2554"]
[BlackElo "2668"]
[Result "0-1"]
[Round "9"]
[TimeControl "180+1"]
[Date "2023.08.15"]
[WhiteClock "0:00:00"]
[BlackClock "0:00:45"]
[Board "51"]

1. e4 {[%clk 0:03:00]}  e5 {[%clk 0:02:59]} 2. Nf3 {[%clk 0:03:00]}  Nc6 {[%clk 0:03:00]} 3. Bc4 {[%clk 0:03:01]}  Bc5 {[%clk 0:03:00]} 4. b4 {[%clk 0:03:01]}  Bxb4 {[%clk 0:02:59]} 5. c3 {[%clk 0:03:02]}  Ba5 {[%clk 0:03:00]} 6. d4 {[%clk 0:03:02]}  exd4 {[%clk 0:03:00]} 7. O-O {[%clk 0:03:02]}  Nge7 {[%clk 0:02:55]} 8. Ng5 {[%clk 0:02:33]}  Ne5 {[%clk 0:02:41]} 9. Nxf7 {[%clk 0:02:27]}  Nxf7 {[%clk 0:02:41]} 10. Bxf7+ {[%clk 0:02:25]}  Kxf7 {[%clk 0:02:42]} 11. Qh5+ {[%clk 0:02:25]}  g6 {[%clk 0:02:43]} 12. Qxa5 {[%clk 0:02:24]}  d5 {[%clk 0:02:42]} 13. cxd4 {[%clk 0:02:07]}  dxe4 {[%clk 0:02:24]} 14. Nc3 {[%clk 0:02:06]}  Bf5 {[%clk 0:02:14]} 15. Re1 {[%clk 0:01:12]}  Nc6 {[%clk 0:01:40]} 16. Qa3 {[%clk 0:01:11]}  Re8 {[%clk 0:01:36]} 17. Qb3+ {[%clk 0:01:04]}  Kg7 {[%clk 0:01:36]} 18. Qxb7 {[%clk 0:01:01]}  Nxd4 {[%clk 0:01:30]} 19. Be3 {[%clk 0:00:24]}  Kg8 {[%clk 0:01:17]} 20. Rad1 {[%clk 0:00:17]}  c5 {[%clk 0:01:17]} 21. Bxd4 {[%clk 0:00:07]}  cxd4 {[%clk 0:01:17]} 22. Nxe4 {[%clk 0:00:08]}  Rb8 {[%clk 0:00:59]} 23. Qxb8 {[%clk 0:00:02]}  Qxb8 {[%clk 0:00:53]} 24. Nf6+ {[%clk 0:00:03]}  Kf7 {[%clk 0:00:53]} 25. Nxe8 {[%clk 0:00:03]}  d3 {[%clk 0:00:49]} 26. Re3 {[%clk 0:00:00]}  Be6 {[%clk 0:00:45]} 0-1


[Site "https://www.chess.com"]

[Event "Titled Tuesday Blitz August 15 Early 2023"]
[White "Vaishali, Rameshbabu"]
[Black "Ansh M Shah"]
[WhiteFideId "5091756"]
[BlackFideId "25033379"]
[WhiteElo "2656"]
[BlackElo "2538"]
[Result "1/2-1/2"]
[Round "9"]
[TimeControl "180+1"]
[Date "2023.08.15"]
[WhiteClock "0:00:08"]
[BlackClock "0:00:07"]
[Board "53"]

1. Nf3 {[%clk 0:02:59]}  Nf6 {[%clk 0:02:57]} 2. g3 {[%clk 0:02:59]}  g6 {[%clk 0:02:57]} 3. Bg2 {[%clk 0:02:59]}  Bg7 {[%clk 0:02:58]} 4. O-O {[%clk 0:02:59]}  O-O {[%clk 0:02:58]} 5. d4 {[%clk 0:03:00]}  d5 {[%clk 0:02:58]} 6. c4 {[%clk 0:03:00]}  c6 {[%clk 0:02:56]} 7. a4 {[%clk 0:03:00]}  a5 {[%clk 0:02:56]} 8. cxd5 {[%clk 0:02:55]}  cxd5 {[%clk 0:02:57]} 9. Nc3 {[%clk 0:02:55]}  Nc6 {[%clk 0:02:56]} 10. Qb3 {[%clk 0:02:56]}  Nb4 {[%clk 0:02:56]} 11. Na2 {[%clk 0:02:34]}  Nxa2 {[%clk 0:02:52]} 12. Rxa2 {[%clk 0:02:34]}  Ne4 {[%clk 0:02:45]} 13. Bf4 {[%clk 0:02:24]}  Ra6 {[%clk 0:02:20]} 14. Rc1 {[%clk 0:02:01]}  Rb6 {[%clk 0:01:35]} 15. Qd1 {[%clk 0:01:52]}  Rc6 {[%clk 0:01:35]} 16. Ne5 {[%clk 0:01:05]}  Rxc1 {[%clk 0:01:30]} 17. Qxc1 {[%clk 0:01:06]}  Qb6 {[%clk 0:01:30]} 18. Be3 {[%clk 0:00:41]}  Qb4 {[%clk 0:00:31]} 19. Nd3 {[%clk 0:00:30]}  Qb6 {[%clk 0:00:23]} 20. Nc5 {[%clk 0:00:24]}  Bf5 {[%clk 0:00:15]} 21. Nxe4 {[%clk 0:00:21]}  Bxe4 {[%clk 0:00:16]} 22. Bxe4 {[%clk 0:00:19]}  dxe4 {[%clk 0:00:17]} 23. Qc4 {[%clk 0:00:15]}  Rd8 {[%clk 0:00:16]} 24. d5 {[%clk 0:00:05]}  Qd6 {[%clk 0:00:16]} 25. Qxe4 {[%clk 0:00:05]}  Qxd5 {[%clk 0:00:15]} 26. Qxd5 {[%clk 0:00:04]}  Rxd5 {[%clk 0:00:16]} 27. Ra3 {[%clk 0:00:04]}  Bxb2 {[%clk 0:00:11]} 28. Rb3 {[%clk 0:00:03]}  Bd4 {[%clk 0:00:12]} 29. Rxb7 {[%clk 0:00:02]}  Bxe3 {[%clk 0:00:12]} 30. fxe3 {[%clk 0:00:02]}  e6 {[%clk 0:00:10]} 31. Rb5 {[%clk 0:00:01]}  Rd2 {[%clk 0:00:05]} 32. Kf2 {[%clk 0:00:01]}  Ra2 {[%clk 0:00:05]} 33. Rxa5 {[%clk 0:00:01]}  Kg7 {[%clk 0:00:06]} 34. Ra6 {[%clk 0:00:02]}  h5 {[%clk 0:00:06]} 35. Kf3 {[%clk 0:00:03]}  Ra3 {[%clk 0:00:06]} 36. h3 {[%clk 0:00:04]}  Ra2 {[%clk 0:00:07]} 37. g4 {[%clk 0:00:04]}  hxg4+ {[%clk 0:00:07]} 38. hxg4 {[%clk 0:00:05]}  Ra3 {[%clk 0:00:08]} 39. Ra7 {[%clk 0:00:06]}  Ra2 {[%clk 0:00:08]} 40. g5 {[%clk 0:00:06]}  Ra3 {[%clk 0:00:08]} 41. a5 {[%clk 0:00:07]}  Ra2 {[%clk 0:00:09]} 42. Ra8 {[%clk 0:00:07]}  Ra4 {[%clk 0:00:10]} 43. e4 {[%clk 0:00:07]}  Ra3+ {[%clk 0:00:10]} 44. e3 {[%clk 0:00:07]}  Ra4 {[%clk 0:00:10]} 45. e5 {[%clk 0:00:08]}  Ra3 {[%clk 0:00:10]} 46. a6 {[%clk 0:00:08]}  Ra5 {[%clk 0:00:10]} 47. Ke4 {[%clk 0:00:08]}  Ra4+ {[%clk 0:00:11]} 48. Kd3 {[%clk 0:00:08]}  Ra5 {[%clk 0:00:11]} 49. Kd4 {[%clk 0:00:09]}  Ra4+ {[%clk 0:00:12]} 50. Kc5 {[%clk 0:00:09]}  Ra5+ {[%clk 0:00:13]} 51. Kd6 {[%clk 0:00:09]}  Ra1 {[%clk 0:00:13]} 52. a7 {[%clk 0:00:09]}  Rd1+ {[%clk 0:00:13]} 53. Ke7 {[%clk 0:00:09]}  Ra1 {[%clk 0:00:14]} 54. Ke8 {[%clk 0:00:09]}  Ra3 {[%clk 0:00:14]} 55. e4 {[%clk 0:00:09]}  Ra4 {[%clk 0:00:14]} 56. Kd7 {[%clk 0:00:09]}  Ra1 {[%clk 0:00:15]} 57. Kc6 {[%clk 0:00:09]}  Ra2 {[%clk 0:00:15]} 58. Kb6 {[%clk 0:00:09]}  Rb2+ {[%clk 0:00:16]} 59. Kc5 {[%clk 0:00:10]}  Ra2 {[%clk 0:00:17]} 60. Kb5 {[%clk 0:00:10]}  Rb2+ {[%clk 0:00:16]} 61. Ka4 {[%clk 0:00:10]}  Ra2+ {[%clk 0:00:17]} 62. Kb3 {[%clk 0:00:11]}  Ra1 {[%clk 0:00:18]} 63. Kc4 {[%clk 0:00:12]}  Ra2 {[%clk 0:00:17]} 64. Kb5 {[%clk 0:00:12]}  Ra1 {[%clk 0:00:17]} 65. Kc6 {[%clk 0:00:12]}  Ra2 {[%clk 0:00:16]} 66. Kd6 {[%clk 0:00:11]}  Ra1 {[%clk 0:00:16]} 67. Ke7 {[%clk 0:00:09]}  Ra2 {[%clk 0:00:16]} 68. Ke8 {[%clk 0:00:08]}  Ra1 {[%clk 0:00:16]} 69. Kd7 {[%clk 0:00:07]}  Ra2 {[%clk 0:00:15]} 70. Ke7 {[%clk 0:00:06]}  Ra1 {[%clk 0:00:16]} 71. Ke8 {[%clk 0:00:04]}  Ra2 {[%clk 0:00:16]} 72. Rd8 {[%clk 0:00:05]}  Rxa7 {[%clk 0:00:16]} 73. Rd7 {[%clk 0:00:06]}  Rxd7 {[%clk 0:00:05]} 74. Kxd7 {[%clk 0:00:06]}  Kf8 {[%clk 0:00:06]} 75. Kd8 {[%clk 0:00:06]}  Kg8 {[%clk 0:00:05]} 76. Ke8 {[%clk 0:00:06]}  Kg7 {[%clk 0:00:06]} 77. Ke7 {[%clk 0:00:07]}  Kg8 {[%clk 0:00:07]} 78. Kf6 {[%clk 0:00:08]}  Kf8 {[%clk 0:00:07]} 1/2-1/2


[Site "https://www.chess.com"]

[Event "Titled Tuesday Blitz August 15 Early 2023"]
[White "Bazilius, Augustinas"]
[Black "Ovchinnikov, Vsevolod"]
[WhiteFideId "12832251"]
[BlackFideId "24176842"]
[WhiteElo "2472"]
[BlackElo "2642"]
[Result "1/2-1/2"]
[Round "9"]
[TimeControl "180+1"]
[Date "2023.08.15"]
[WhiteClock "0:00:26"]
[BlackClock "0:01:01"]
[Board "58"]

1. d4 {[%clk 0:02:52]}  Nf6 {[%clk 0:03:00]} 2. c4 {[%clk 0:02:52]}  g6 {[%clk 0:03:00]} 3. Nf3 {[%clk 0:02:53]}  Bg7 {[%clk 0:02:59]} 4. g3 {[%clk 0:02:52]}  d5 {[%clk 0:02:59]} 5. Bg2 {[%clk 0:02:49]}  dxc4 {[%clk 0:02:59]} 6. O-O {[%clk 0:02:44]}  O-O {[%clk 0:02:59]} 7. Na3 {[%clk 0:02:44]}  Nc6 {[%clk 0:03:00]} 8. Nxc4 {[%clk 0:02:44]}  Be6 {[%clk 0:03:00]} 9. b3 {[%clk 0:02:41]}  Bd5 {[%clk 0:03:00]} 10. Bb2 {[%clk 0:02:38]}  a5 {[%clk 0:03:01]} 11. Re1 {[%clk 0:02:29]}  a4 {[%clk 0:02:53]} 12. Nfe5 {[%clk 0:02:17]}  Bxg2 {[%clk 0:02:42]} 13. Kxg2 {[%clk 0:02:18]}  Nxe5 {[%clk 0:02:39]} 14. Nxe5 {[%clk 0:02:04]}  Qd5+ {[%clk 0:02:35]} 15. f3 {[%clk 0:02:00]}  axb3 {[%clk 0:02:35]} 16. Qxb3 {[%clk 0:02:01]}  Ra7 {[%clk 0:02:17]} 17. e4 {[%clk 0:01:53]}  Qxb3 {[%clk 0:02:16]} 18. axb3 {[%clk 0:01:54]}  Rfa8 {[%clk 0:02:15]} 19. Rxa7 {[%clk 0:01:51]}  Rxa7 {[%clk 0:02:16]} 20. Ra1 {[%clk 0:01:51]}  Rxa1 {[%clk 0:02:15]} 21. Bxa1 {[%clk 0:01:52]}  e6 {[%clk 0:02:14]} 22. Kf2 {[%clk 0:01:52]}  Kf8 {[%clk 0:02:09]} 23. Ke3 {[%clk 0:01:52]}  Ke8 {[%clk 0:02:09]} 24. Bc3 {[%clk 0:01:42]}  Bh6+ {[%clk 0:01:58]} 25. f4 {[%clk 0:01:36]}  Bf8 {[%clk 0:01:56]} 26. h3 {[%clk 0:01:33]}  Nd7 {[%clk 0:01:47]} 27. Nxd7 {[%clk 0:01:26]}  Kxd7 {[%clk 0:01:48]} 28. Kd3 {[%clk 0:01:21]}  Kc6 {[%clk 0:01:41]} 29. Kc4 {[%clk 0:01:21]}  b5+ {[%clk 0:01:40]} 30. Kd3 {[%clk 0:01:21]}  f5 {[%clk 0:01:41]} 31. b4 {[%clk 0:00:53]}  Bd6 {[%clk 0:01:38]} 32. Bd2 {[%clk 0:00:50]}  h5 {[%clk 0:01:28]} 33. h4 {[%clk 0:00:45]}  Be7 {[%clk 0:01:20]} 34. e5 {[%clk 0:00:32]}  Kd5 {[%clk 0:01:20]} 35. Bc3 {[%clk 0:00:30]}  Bf8 {[%clk 0:01:05]} 36. Bd2 {[%clk 0:00:30]}  Be7 {[%clk 0:01:03]} 37. Bc3 {[%clk 0:00:30]}  Bd8 {[%clk 0:01:04]} 38. Bd2 {[%clk 0:00:27]}  c6 {[%clk 0:01:01]} 39. Bc3 {[%clk 0:00:27]}  Bb6 {[%clk 0:01:02]} 40. Bb2 {[%clk 0:00:26]}  Ba7 {[%clk 0:00:59]} 41. Bc3 {[%clk 0:00:25]}  Bb6 {[%clk 0:00:59]} 42. Bb2 {[%clk 0:00:26]}  Ba7 {[%clk 0:01:00]} 43. Bc3 {[%clk 0:00:26]}  Bb6 {[%clk 0:01:01]} 1/2-1/2


[Site "https://www.chess.com"]

[Event "Titled Tuesday Blitz August 15 Early 2023"]
[White "Bashirli, Saadat"]
[Black "Kuzhilniy, Oleksandr"]
[WhiteFideId "13429990"]
[BlackFideId "34110500"]
[WhiteElo "2376"]
[BlackElo "2624"]
[Result "0-1"]
[Round "9"]
[TimeControl "180+1"]
[Date "2023.08.15"]
[WhiteClock "0:00:37"]
[BlackClock "0:01:24"]
[Board "61"]

1. d4 {[%clk 0:01:33]}  Nf6 {[%clk 0:02:53]} 2. e3 {[%clk 0:01:33]}  d5 {[%clk 0:02:50]} 3. Bd3 {[%clk 0:01:33]}  c6 {[%clk 0:02:50]} 4. f4 {[%clk 0:01:34]}  g6 {[%clk 0:02:49]} 5. Nf3 {[%clk 0:01:34]}  Bf5 {[%clk 0:02:49]} 6. c3 {[%clk 0:01:33]}  Bxd3 {[%clk 0:02:48]} 7. Qxd3 {[%clk 0:01:34]}  Ne4 {[%clk 0:02:48]} 8. Nbd2 {[%clk 0:01:34]}  Nxd2 {[%clk 0:02:48]} 9. Bxd2 {[%clk 0:01:34]}  Nd7 {[%clk 0:02:49]} 10. O-O {[%clk 0:01:34]}  Nf6 {[%clk 0:02:49]} 11. Ne5 {[%clk 0:01:33]}  e6 {[%clk 0:02:48]} 12. Qe2 {[%clk 0:01:33]}  h5 {[%clk 0:02:46]} 13. Rac1 {[%clk 0:01:32]}  Bd6 {[%clk 0:02:46]} 14. b3 {[%clk 0:01:31]}  Ne4 {[%clk 0:02:43]} 15. c4 {[%clk 0:01:30]}  Qe7 {[%clk 0:02:38]} 16. c5 {[%clk 0:01:29]}  Bxe5 {[%clk 0:02:38]} 17. fxe5 {[%clk 0:01:29]}  h4 {[%clk 0:02:22]} 18. b4 {[%clk 0:01:27]}  a6 {[%clk 0:02:21]} 19. a4 {[%clk 0:01:26]}  Kf8 {[%clk 0:02:12]} 20. Rb1 {[%clk 0:01:24]}  Kg7 {[%clk 0:02:12]} 21. Be1 {[%clk 0:01:20]}  Rh5 {[%clk 0:02:08]} 22. b5 {[%clk 0:01:18]}  axb5 {[%clk 0:02:07]} 23. axb5 {[%clk 0:01:19]}  h3 {[%clk 0:02:05]} 24. g3 {[%clk 0:01:18]}  Rf5 {[%clk 0:02:03]} 25. Rxf5 {[%clk 0:01:17]}  exf5 {[%clk 0:02:03]} 26. bxc6 {[%clk 0:01:16]}  bxc6 {[%clk 0:02:03]} 27. Qb2 {[%clk 0:01:16]}  Qg5 {[%clk 0:01:57]} 28. Bf2 {[%clk 0:01:14]}  Qg4 {[%clk 0:01:53]} 29. Qc1 {[%clk 0:01:06]}  Qf3 {[%clk 0:01:37]} 30. Qf1 {[%clk 0:01:04]}  Ra2 {[%clk 0:01:35]} 31. Rc1 {[%clk 0:00:47]}  Rxf2 {[%clk 0:01:33]} 32. Qxh3 {[%clk 0:00:47]}  Qxe3 {[%clk 0:01:30]} 33. Rf1 {[%clk 0:00:40]}  Rxf1+ {[%clk 0:01:23]} 34. Kxf1 {[%clk 0:00:37]}  Qf2# {[%clk 0:01:24]} 0-1


[Site "https://www.chess.com"]

[Event "Titled Tuesday Blitz August 15 Early 2023"]
[White "EvgenyBurmakin"]
[Black "Vlassov, Nikolai"]
[BlackFideId "4103360"]
[WhiteElo "2311"]
[BlackElo "2619"]
[Result "0-1"]
[Round "9"]
[TimeControl "180+1"]
[Date "2023.08.15"]
[WhiteClock "0:00:33"]
[BlackClock "0:02:47"]
[Board "62"]

1. e4 {[%clk 0:03:00]}  Nc6 {[%clk 0:02:59]} 2. Nf3 {[%clk 0:02:59]}  d5 {[%clk 0:02:59]} 3. exd5 {[%clk 0:02:53]}  Qxd5 {[%clk 0:03:00]} 4. Nc3 {[%clk 0:02:53]}  Qa5 {[%clk 0:03:00]} 5. d4 {[%clk 0:02:47]}  Bg4 {[%clk 0:03:00]} 6. h3 {[%clk 0:02:36]}  Bxf3 {[%clk 0:03:00]} 7. Qxf3 {[%clk 0:02:31]}  O-O-O {[%clk 0:03:00]} 8. Qxf7 {[%clk 0:01:49]}  e5 {[%clk 0:02:59]} 9. d5 {[%clk 0:01:20]}  Nd4 {[%clk 0:02:58]} 10. Bd3 {[%clk 0:01:18]}  Nf6 {[%clk 0:02:58]} 11. d6 {[%clk 0:00:58]}  Rd7 {[%clk 0:02:56]} 12. Qc4 {[%clk 0:00:54]}  b5 {[%clk 0:02:55]} 13. b4 {[%clk 0:00:43]}  bxc4 {[%clk 0:02:53]} 14. bxa5 {[%clk 0:00:42]}  cxd3 {[%clk 0:02:54]} 15. cxd3 {[%clk 0:00:42]}  Nc2+ {[%clk 0:02:53]} 16. Kd2 {[%clk 0:00:40]}  Nxa1 {[%clk 0:02:53]} 17. Bb2 {[%clk 0:00:39]}  Bxd6 {[%clk 0:02:50]} 18. Rxa1 {[%clk 0:00:33]}  Bb4 {[%clk 0:02:47]} 0-1


[Site "https://www.chess.com"]

[Event "Titled Tuesday Blitz August 15 Early 2023"]
[White "Williams, Simon K"]
[Black "Aaditya Dhingra"]
[WhiteFideId "404454"]
[BlackFideId "25678191"]
[WhiteElo "2551"]
[BlackElo "2651"]
[Result "1-0"]
[Round "9"]
[TimeControl "180+1"]
[Date "2023.08.15"]
[WhiteClock "0:00:11"]
[BlackClock "0:00:08"]
[Board "67"]

1. d4 {[%clk 0:03:00]}  Nf6 {[%clk 0:02:58]} 2. Nc3 {[%clk 0:02:59]}  d5 {[%clk 0:02:59]} 3. Bf4 {[%clk 0:02:58]}  c5 {[%clk 0:02:59]} 4. e4 {[%clk 0:02:54]}  Nxe4 {[%clk 0:02:58]} 5. Nxe4 {[%clk 0:02:52]}  dxe4 {[%clk 0:02:59]} 6. d5 {[%clk 0:02:48]}  Bf5 {[%clk 0:02:55]} 7. Ne2 {[%clk 0:02:44]}  Nd7 {[%clk 0:02:54]} 8. Nc3 {[%clk 0:02:43]}  a6 {[%clk 0:02:53]} 9. a4 {[%clk 0:02:42]}  h6 {[%clk 0:02:40]} 10. g4 {[%clk 0:02:36]}  Bh7 {[%clk 0:02:38]} 11. Bg2 {[%clk 0:02:35]}  g5 {[%clk 0:02:36]} 12. Bg3 {[%clk 0:02:34]}  Bg7 {[%clk 0:02:33]} 13. O-O {[%clk 0:02:18]}  Nf6 {[%clk 0:02:23]} 14. Be5 {[%clk 0:02:07]}  O-O {[%clk 0:02:19]} 15. Qe2 {[%clk 0:01:45]}  Nxd5 {[%clk 0:02:09]} 16. Bxg7 {[%clk 0:01:44]}  Nf4 {[%clk 0:02:03]} 17. Qe3 {[%clk 0:01:35]}  Kxg7 {[%clk 0:02:02]} 18. Qxc5 {[%clk 0:01:34]}  Qd7 {[%clk 0:01:48]} 19. h3 {[%clk 0:01:29]}  Rac8 {[%clk 0:01:41]} 20. Qe3 {[%clk 0:01:26]}  f5 {[%clk 0:01:41]} 21. Rad1 {[%clk 0:01:21]}  Qe6 {[%clk 0:01:39]} 22. gxf5 {[%clk 0:01:08]}  Bxf5 {[%clk 0:01:38]} 23. Bxe4 {[%clk 0:01:06]}  Bxh3 {[%clk 0:01:26]} 24. Rfe1 {[%clk 0:00:58]}  Bg4 {[%clk 0:01:12]} 25. f3 {[%clk 0:00:39]}  Bh5 {[%clk 0:01:06]} 26. Qd4+ {[%clk 0:00:32]}  Rf6 {[%clk 0:00:49]} 27. Bxb7 {[%clk 0:00:25]}  Qh3 {[%clk 0:00:47]} 28. Rxe7+ {[%clk 0:00:25]}  Kg8 {[%clk 0:00:46]} 29. Rd2 {[%clk 0:00:19]}  Qg3+ {[%clk 0:00:40]} 30. Kf1 {[%clk 0:00:19]}  Qh3+ {[%clk 0:00:39]} 31. Ke1 {[%clk 0:00:14]}  Qh1+ {[%clk 0:00:37]} 32. Kf2 {[%clk 0:00:14]}  Nh3+ {[%clk 0:00:33]} 33. Ke3 {[%clk 0:00:14]}  Rxf3+ {[%clk 0:00:32]} 34. Ke4 {[%clk 0:00:13]}  Bg6+ {[%clk 0:00:20]} 35. Ke5 {[%clk 0:00:12]}  Rf5+ {[%clk 0:00:16]} 36. Ke6 {[%clk 0:00:11]}  Qe1+ {[%clk 0:00:12]} 37. Re2 {[%clk 0:00:11]}  Nf4+ {[%clk 0:00:11]} 38. Kd7 {[%clk 0:00:11]}  Nxe2 {[%clk 0:00:08]} 39. Qg7# {[%clk 0:00:11]} 1-0


[Site "https://www.chess.com"]

[Event "Titled Tuesday Blitz August 15 Early 2023"]
[White "Rodchenkov, Sergey D."]
[Black "Belov, Alexei"]
[WhiteFideId "4168712"]
[BlackFideId "4128206"]
[WhiteElo "2516"]
[BlackElo "2615"]
[Result "0-1"]
[Round "9"]
[TimeControl "180+1"]
[Date "2023.08.15"]
[WhiteClock "0:00:00"]
[BlackClock "0:00:42"]
[Board "69"]

1. e4 {[%clk 0:03:00]}  e6 {[%clk 0:02:59]} 2. d4 {[%clk 0:03:00]}  d5 {[%clk 0:03:00]} 3. Nc3 {[%clk 0:03:00]}  Nf6 {[%clk 0:03:00]} 4. e5 {[%clk 0:03:01]}  Ne4 {[%clk 0:03:00]} 5. Nxe4 {[%clk 0:03:01]}  dxe4 {[%clk 0:03:00]} 6. Bc4 {[%clk 0:03:01]}  a6 {[%clk 0:03:00]} 7. a4 {[%clk 0:03:01]}  b6 {[%clk 0:03:00]} 8. d5 {[%clk 0:02:20]}  Bb7 {[%clk 0:03:00]} 9. dxe6 {[%clk 0:02:16]}  Qxd1+ {[%clk 0:02:59]} 10. Kxd1 {[%clk 0:02:17]}  fxe6 {[%clk 0:03:00]} 11. Bf4 {[%clk 0:02:00]}  Bd5 {[%clk 0:02:43]} 12. Bf1 {[%clk 0:01:45]}  Nd7 {[%clk 0:02:36]} 13. Kc1 {[%clk 0:01:31]}  Bc5 {[%clk 0:02:28]} 14. Nh3 {[%clk 0:01:27]}  O-O {[%clk 0:02:26]} 15. c3 {[%clk 0:01:18]}  Bxf2 {[%clk 0:02:21]} 16. Kc2 {[%clk 0:01:18]}  e3 {[%clk 0:02:13]} 17. Bg3 {[%clk 0:00:30]}  Be4+ {[%clk 0:01:56]} 18. Kb3 {[%clk 0:00:24]}  Bxg3 {[%clk 0:01:31]} 19. hxg3 {[%clk 0:00:25]}  Nxe5 {[%clk 0:01:31]} 20. Re1 {[%clk 0:00:21]}  Rxf1 {[%clk 0:01:08]} 21. Rhxf1 {[%clk 0:00:15]}  Bxg2 {[%clk 0:01:08]} 22. Rf4 {[%clk 0:00:07]}  Bxh3 {[%clk 0:01:06]} 23. Rxe3 {[%clk 0:00:07]}  Ng6 {[%clk 0:01:03]} 24. Rd4 {[%clk 0:00:06]}  e5 {[%clk 0:00:58]} 25. Rd2 {[%clk 0:00:05]}  Kf7 {[%clk 0:00:54]} 26. Ka3 {[%clk 0:00:06]}  Bg4 {[%clk 0:00:47]} 27. b4 {[%clk 0:00:05]}  a5 {[%clk 0:00:45]} 28. b5 {[%clk 0:00:04]}  Ke7 {[%clk 0:00:44]} 29. c4 {[%clk 0:00:00]}  Rd8 {[%clk 0:00:42]} 0-1


[Site "https://www.chess.com"]

[Event "Titled Tuesday Blitz August 15 Early 2023"]
[White "Hristodoulou, Panagiotis"]
[Black "Komov, Roman"]
[WhiteFideId "4214340"]
[BlackFideId "24175714"]
[WhiteElo "2513"]
[BlackElo "2615"]
[Result "0-1"]
[Round "9"]
[TimeControl "180+1"]
[Date "2023.08.15"]
[WhiteClock "0:01:43"]
[BlackClock "0:01:16"]
[Board "70"]

1. e4 {[%clk 0:02:59]}  c5 {[%clk 0:03:00]} 2. Nf3 {[%clk 0:02:58]}  d6 {[%clk 0:03:00]} 3. d4 {[%clk 0:02:59]}  cxd4 {[%clk 0:03:01]} 4. Nxd4 {[%clk 0:02:59]}  Nf6 {[%clk 0:03:01]} 5. Nc3 {[%clk 0:03:00]}  Nc6 {[%clk 0:03:02]} 6. Bg5 {[%clk 0:03:00]}  e6 {[%clk 0:03:02]} 7. Qd3 {[%clk 0:03:00]}  Bd7 {[%clk 0:03:02]} 8. O-O-O {[%clk 0:03:00]}  a6 {[%clk 0:03:03]} 9. Kb1 {[%clk 0:03:00]}  Be7 {[%clk 0:03:01]} 10. f4 {[%clk 0:03:00]}  b5 {[%clk 0:02:58]} 11. Nb3 {[%clk 0:02:55]}  Qc7 {[%clk 0:02:47]} 12. Bxf6 {[%clk 0:02:54]}  Bxf6 {[%clk 0:02:46]} 13. Qxd6 {[%clk 0:02:54]}  Qxd6 {[%clk 0:02:47]} 14. Rxd6 {[%clk 0:02:54]}  Bxc3 {[%clk 0:02:39]} 15. bxc3 {[%clk 0:02:54]}  Ke7 {[%clk 0:02:36]} 16. Rd2 {[%clk 0:02:48]}  Rhc8 {[%clk 0:02:31]} 17. c4 {[%clk 0:02:47]}  Nb4 {[%clk 0:02:06]} 18. Na5 {[%clk 0:02:41]}  Rab8 {[%clk 0:02:02]} 19. cxb5 {[%clk 0:02:33]}  Bxb5 {[%clk 0:02:01]} 20. Bxb5 {[%clk 0:02:33]}  Rxb5 {[%clk 0:02:02]} 21. Nb3 {[%clk 0:02:34]}  a5 {[%clk 0:02:01]} 22. a4 {[%clk 0:02:34]}  Rbb8 {[%clk 0:01:48]} 23. Kb2 {[%clk 0:02:32]}  Rc4 {[%clk 0:01:47]} 24. Re1 {[%clk 0:02:27]}  Rbc8 {[%clk 0:01:31]} 25. Ree2 {[%clk 0:02:25]}  Nc6 {[%clk 0:01:27]} 26. Ka3 {[%clk 0:02:21]}  Rb8 {[%clk 0:01:24]} 27. Rd3 {[%clk 0:01:45]}  Rbb4 {[%clk 0:01:20]} 28. Rde3 {[%clk 0:01:45]}  Rxa4+ {[%clk 0:01:15]} 29. Kb2 {[%clk 0:01:43]}  Rab4 {[%clk 0:01:16]} 0-1


[Site "https://www.chess.com"]